fUST/lending_fUST_20250604
["ID","MTS","AMOUNT","RATE_DAILY","PERIOD"]
[364063160,1748982639363,-440.0,0.00016438,2]
[364063162,1748982639373,-440.0,0.00016438,2]
[364063164,1748982639383,-440.0,0.00016438,2]
[364063166,1748982639393,-571.78269127,0.00016438,2]
[364063168,1748982639403,-440.0,0.00016438,2]
[364063170,1748982639413,-430.0,0.00016438,2]
[364063172,1748982639422,-350.0,0.00016438,2]
[364063174,1748982639432,-440.0,0.00016438,2]
[364063176,1748982639444,-489.37,0.00016438,2]
[364063178,1748982639455,-440.0,0.00016438,2]
[364063180,1748982639473,-440.0,0.00016438,2]
[364063182,1748982639485,-440.0,0.00016438,2]
[364063184,1748982639495,-440.0,0.00016438,2]
[364063186,1748982639505,-440.0,0.00016438,2]
[364063188,1748982639516,-440.0,0.00016438,2]
[364063190,1748982639526,-440.0,0.00016438,2]
[364063192,1748982639535,-440.0,0.00016438,2]
[364063194,1748982639544,-440.0,0.00016438,2]
[364063196,1748982639555,-390.5135868,0.00016438,2]
[364063198,1748982639565,-531.66019445,0.00016438,2]
[364063200,1748982639575,-336.21154462,0.00016438,2]
[364063202,1748982639585,-440.0,0.00016438,2]
[364063204,1748982639594,-532.53,0.00016438,2]
[364063206,1748982639604,-440.0,0.00016438,2]
[364063208,1748982639614,-440.0,0.00016438,2]
[364063210,1748982639624,-440.0,0.00016438,2]
[364063212,1748982639634,-440.0,0.00016438,2]
[364063214,1748982639644,-440.0,0.00016438,2]
[364063216,1748982639654,-500.0,0.00016438,2]
[364063218,1748982639664,-440.0,0.00016712,2]
[364063220,1748982639674,-529.08,0.00016712,2]
[364063222,1748982639683,-420.0,0.00016712,2]
[364063224,1748982639693,-425.48400124,0.00016712,2]
[364063226,1748982639703,-440.0,0.00016712,2]
[364063228,1748982639714,-182.09822183,0.00016712,2]
[364063230,1748982639724,-384.72684773,0.00016712,2]
[364063232,1748982639734,-440.0,0.00016712,2]
[364063234,1748982639743,-440.0,0.00016712,2]
[364063236,1748982639753,-360.57654929,0.00016712,2]
[364063238,1748982639768,-440.0,0.00016712,2]
[364063240,1748982639781,-440.0,0.00016712,2]
[364063242,1748982639791,-361.84557776,0.00016712,2]
[364063244,1748982639801,-440.0,0.00016712,2]
[364063246,1748982639811,-440.0,0.00016712,2]
[364063248,1748982639821,-440.0,0.00016712,2]
[364063250,1748982639831,-440.0,0.00016712,2]
[364063252,1748982639841,-390.0,0.00016712,2]
[364063254,1748982639850,-440.0,0.00016712,2]
[364063256,1748982639860,-500.07200632,0.00016712,2]
[364063258,1748982639871,-440.0,0.00016712,2]
[364063260,1748982639881,-224.55523875,0.00016712,2]
[364063262,1748982639891,-470.91424413,0.00016712,2]
[364063264,1748982639902,-440.0,0.00016712,2]
[364063266,1748982639912,-395.28,0.00016712,2]
[364063268,1748982639921,-415.27910054,0.00016712,2]
[364063270,1748982639932,-440.0,0.00016712,2]
[364063272,1748982639942,-440.0,0.00016712,2]
[364063274,1748982639952,-440.0,0.00016712,2]
[364063276,1748982639963,-440.0,0.00016712,2]
[364063278,1748982639972,-360.0,0.00016712,2]
[364063280,1748982639982,-440.0,0.00016712,2]
[364063282,1748982639992,-440.0,0.00016712,2]
[364063284,1748982640002,-410.0,0.00016712,2]
[364063286,1748982640012,-440.0,0.00016712,2]
[364063288,1748982640021,-440.0,0.00016712,2]
[364063290,1748982640031,-255.64708101,0.00016712,2]
[364063292,1748982640041,-410.0,0.00016712,2]
[364063294,1748982640051,-440.0,0.00016712,2]
[364063296,1748982640060,-440.0,0.00016712,2]
[364063298,1748982640070,-440.0,0.00016712,2]
[364063300,1748982640080,-440.0,0.00016712,2]
[364063302,1748982640090,-430.0,0.00016712,2]
[364063304,1748982640099,-430.0,0.00016712,2]
[364063306,1748982640109,-430.0,0.00016712,2]
[364063308,1748982640119,-440.0,0.00016712,2]
[364063310,1748982640128,-414.19103991,0.00016712,2]
[364063312,1748982640137,-430.0,0.00016712,2]
[364063314,1748982640147,-440.0,0.00016712,2]
[364063316,1748982640156,-440.0,0.00016712,2]
[364063318,1748982640166,-440.0,0.00016712,2]
[364063320,1748982640176,-440.0,0.00016712,2]
[364063323,1748982640187,-440.0,0.00016712,2]
[364063325,1748982640198,-440.0,0.00016712,2]
[364063327,1748982640207,-440.0,0.00016712,2]
[364063329,1748982640220,-440.0,0.00016712,2]
[364063331,1748982640230,-440.0,0.00016712,2]
[364063333,1748982640240,-440.0,0.00016712,2]
[364063335,1748982640250,-440.0,0.00016712,2]
[364063337,1748982640259,-440.0,0.00016712,2]
[364063339,1748982640269,-440.0,0.00016712,2]
[364063341,1748982640278,-440.0,0.00016712,2]
[364063343,1748982640287,-370.0,0.00016712,2]
[364063345,1748982640297,-440.0,0.00016712,2]
[364063347,1748982640306,-440.0,0.00016712,2]
[364063349,1748982640316,-440.0,0.00016712,2]
[364063351,1748982640326,-440.0,0.00016712,2]
[364063353,1748982640335,-440.0,0.00016712,2]
[364063355,1748982640345,-360.0,0.00016712,2]
[364063357,1748982640355,-370.0,0.00016712,2]
[364063359,1748982640365,-440.0,0.00016712,2]
[364063361,1748982640376,-440.0,0.00016712,2]
[364063363,1748982640386,-440.0,0.00016712,2]
[364063365,1748982640396,-440.0,0.00016712,2]
[364063367,1748982640405,-440.0,0.00016712,2]
[364063369,1748982640416,-440.0,0.00016712,2]
[364063371,1748982640426,-440.0,0.00016712,2]
[364063373,1748982640440,-440.0,0.00016712,2]
[364063375,1748982640450,-440.0,0.00016712,2]
[364063377,1748982640460,-440.0,0.00016712,2]
[364063379,1748982640471,-562.84,0.00016712,2]
[364063381,1748982640482,-440.0,0.00016712,2]
[364063383,1748982640492,-220.34110096,0.00016712,2]
[364063385,1748982640501,-440.0,0.00016712,2]
[364063387,1748982640511,-430.0,0.00016712,2]
[364063389,1748982640522,-440.0,0.00016712,2]
[364063391,1748982640531,-430.0,0.00016712,2]
[364063393,1748982640540,-440.0,0.00016712,2]
[364063395,1748982640550,-440.0,0.00016712,2]
[364063397,1748982640561,-457.84876974,0.00016712,2]
[364063399,1748982640570,-440.0,0.00016712,2]
[364063401,1748982640580,-440.0,0.00016712,2]
[364063403,1748982640590,-440.0,0.00016712,2]
[364063405,1748982640601,-440.0,0.00016712,2]
[364063407,1748982640611,-440.0,0.00016712,2]
[364063409,1748982640620,-252.64,0.00016712,2]
[364063411,1748982640630,-440.0,0.00016712,2]
[364063413,1748982640640,-440.0,0.00016712,2]
[364063416,1748982640650,-440.0,0.00016712,2]
[364063417,1748982640660,-489.37,0.00016712,2]
[364063420,1748982640671,-440.0,0.00016712,2]
[364063422,1748982640680,-440.0,0.00016712,2]
[364063424,1748982640689,-526.25251055,0.00016712,2]
[364063426,1748982640698,-440.0,0.00016712,2]
[364063428,1748982640709,-440.0,0.00016712,2]
[364063430,1748982640720,-440.0,0.00016712,2]
[364063432,1748982640730,-440.0,0.00016712,2]
[364063434,1748982640739,-440.0,0.00016712,2]
[364063436,1748982640749,-440.0,0.00016712,2]
[364063438,1748982640758,-470.40782091,0.00016765,2]
[364063440,1748982640768,-500.0,0.00016765,2]
[364063442,1748982640779,-500.0,0.00016765,2]
[364063444,1748982640790,-440.0,0.00016986,2]
[364063446,1748982640800,-440.0,0.00016986,2]
[364063448,1748982640809,-440.0,0.00016986,2]
[364063450,1748982640819,-440.0,0.00016986,2]
[364063452,1748982640829,-440.0,0.00016986,2]
[364063454,1748982640838,-317.77184021,0.00016986,2]
[364063456,1748982640848,-440.0,0.00016986,2]
[364063459,1748982640857,-440.0,0.00016986,2]
[364063460,1748982640867,-440.0,0.00016986,2]
[364063462,1748982640876,-440.0,0.00016986,2]
[364063464,1748982640886,-440.0,0.00016986,2]
[364063467,1748982640896,-175.40038195,0.00016986,2]
[364063468,1748982640906,-548.95,0.00016986,2]
[364063471,1748982640916,-440.0,0.00016986,2]
[364063473,1748982640926,-283.11543993,0.00016986,2]
[364063475,1748982640936,-440.0,0.00016986,2]
[364063477,1748982640947,-440.0,0.00016986,2]
[364063479,1748982640957,-440.0,0.00016986,2]
[364063481,1748982640971,-360.58,0.00016986,2]
[364063483,1748982640981,-440.0,0.00016986,2]
[364063485,1748982640991,-505.22,0.00016986,2]
[364063487,1748982641001,-487.20587285,0.00016986,2]
[364063489,1748982641011,-440.0,0.00016986,2]
[364063491,1748982641021,-367.0822292,0.00016986,2]
[364063493,1748982641031,-440.0,0.00016986,2]
[364063495,1748982641041,-440.0,0.00016986,2]
[364063497,1748982641051,-440.0,0.00016986,2]
[364063499,1748982641061,-440.0,0.00016986,2]
[364063501,1748982641071,-440.0,0.00016986,2]
[364063503,1748982641081,-440.0,0.00016986,2]
[364063505,1748982641092,-430.0,0.00016986,2]
[364063507,1748982641102,-440.0,0.00016986,2]
[364063509,1748982641112,-440.0,0.00016986,2]
[364063512,1748982641122,-489.37,0.00016986,2]
[364063514,1748982641132,-440.0,0.00016986,2]
[364063516,1748982641142,-440.0,0.00016986,2]
[364063517,1748982641151,-359.8875,0.00016986,2]
[364063520,1748982641161,-440.0,0.00016986,2]
[364063521,1748982641171,-440.0,0.00016986,2]
[364063524,1748982641181,-512.79628993,0.00017046,2]
[364063526,1748982641190,-562.57261542,0.00017257,2]
[364063528,1748982641201,-440.0,0.0001726,2]
[364063530,1748982641210,-336.9670669,0.0001726,2]
[364063532,1748982641223,-440.0,0.0001726,2]
[364063534,1748982641232,-440.0,0.0001726,2]
[364063536,1748982641242,-277.03,0.0001726,2]
[364063538,1748982641252,-496.76,0.0001726,2]
[364063540,1748982641263,-440.0,0.0001726,2]
[364063542,1748982641272,-440.0,0.0001726,2]
[364063544,1748982641282,-440.0,0.0001726,2]
[364063546,1748982641292,-440.0,0.0001726,2]
[364063548,1748982641301,-440.0,0.0001726,2]
[364063550,1748982641312,-440.0,0.0001726,2]
[364063552,1748982641321,-440.0,0.0001726,2]
[364063554,1748982641331,-440.0,0.0001726,2]
[364063556,1748982641341,-489.37,0.0001726,2]
[364063558,1748982641351,-440.0,0.0001726,2]
[364063560,1748982641360,-440.0,0.0001726,2]
[364063562,1748982641370,-440.0,0.0001726,2]
[364063564,1748982641380,-440.0,0.0001726,2]
[364063566,1748982641390,-440.0,0.00017534,2]
[364063568,1748982641400,-440.0,0.00017534,2]
[364063570,1748982641410,-440.0,0.00017534,2]
[364063572,1748982641420,-440.0,0.00017534,2]
[364063574,1748982641430,-440.0,0.00017534,2]
[364063576,1748982641441,-440.0,0.00017534,2]
[364063579,1748982641452,-440.0,0.00017534,2]
[364063581,1748982641462,-440.0,0.00017534,2]
[364063582,1748982641473,-440.0,0.00017534,2]
[364063584,1748982641482,-489.37,0.00017534,2]
[364063587,1748982641493,-440.0,0.00017534,2]
[364063589,1748982641504,-163.17,0.00017534,2]
[364063591,1748982641514,-440.0,0.00017534,2]
[364063593,1748982641527,-440.0,0.00017808,2]
[364063595,1748982641536,-440.0,0.00017808,2]
[364063597,1748982641546,-440.0,0.00017808,2]
[364063599,1748982641555,-440.0,0.00017808,2]
[364063601,1748982641564,-440.0,0.00017808,2]
[364063603,1748982641574,-362.64807872,0.00017808,2]
[364063605,1748982641584,-440.0,0.00017808,2]
[364063607,1748982641593,-489.37,0.00017808,2]
[364063609,1748982641603,-440.0,0.00017808,2]
[364063611,1748982641613,-440.0,0.00017808,2]
[364063613,1748982641623,-915.60167868,0.000179,2]
[364063615,1748982641633,-420.0,0.00017963,2]
[364063617,1748982641642,-722.15915591,0.00018,2]
[364063619,1748982641651,-440.0,0.00018082,2]
[364063621,1748982641661,-440.0,0.00018082,2]
[364063623,1748982641670,-440.0,0.00018082,2]
[364063625,1748982641682,-440.0,0.00018082,2]
[364063627,1748982641695,-440.0,0.00018082,2]
[364063629,1748982641704,-440.0,0.00018082,2]
[364063631,1748982641715,-489.37,0.00018082,2]
[364063633,1748982641725,-440.0,0.00018082,2]
[364063635,1748982641734,-440.0,0.00018082,2]
[364063637,1748982641744,-915.60167839,0.00018141,2]
[364063639,1748982641753,-440.0,0.00018356,2]
[364063651,1748982641868,-440.0,0.00018356,2]
[364063653,1748982641878,-440.0,0.00018356,2]
[364063655,1748982641889,-440.0,0.00018356,2]
[364063657,1748982641898,-440.0,0.00018356,2]
[364063659,1748982641907,-440.0,0.00018356,2]
[364063661,1748982641917,-489.37,0.00018356,2]
[364063663,1748982641926,-440.0,0.00018356,2]
[364063665,1748982641936,-440.0,0.00018356,2]
[364063667,1748982641946,-915.60167839,0.00018383,2]
[364063669,1748982641955,-423.63107087,0.00018468,2]
[364063671,1748982641966,-212.86879254,0.00018468,2]
[364063673,1748982641975,-160.0,0.00018468,2]
[364063675,1748982641985,-12670.76136593,0.00018468,2]
[364063677,1748982641995,-229.42821335,0.00018468,2]
[364063679,1748982642005,-160.0,0.00018468,2]
[364063681,1748982642015,-842.5625,0.00018468,2]
[364063683,1748982642023,-915.60167839,0.00018624,2]
[364063685,1748982642034,-242.3,0.0001863,2]
[364063687,1748982642043,-440.0,0.0001863,2]
[364063689,1748982642052,-440.0,0.0001863,2]
[364063691,1748982642062,-440.0,0.0001863,2]
[364063693,1748982642071,-440.0,0.0001863,2]
[364063695,1748982642081,-440.0,0.0001863,2]
[364063697,1748982642090,-489.37,0.0001863,2]
[364063699,1748982642099,-440.0,0.0001863,2]
[364063701,1748982642109,-440.0,0.0001863,2]
[364063703,1748982642118,-915.60167839,0.00018866,2]
[364063706,1748982642127,-215.18,0.00018904,2]
[364063708,1748982642137,-440.0,0.00018904,2]
[364063710,1748982642148,-440.0,0.00018904,2]
[364063712,1748982642159,-440.0,0.00018904,2]
[364063713,1748982642168,-440.0,0.00018904,2]
[364063715,1748982642177,-489.37,0.00018904,2]
[364063718,1748982642187,-440.0,0.00018904,2]
[364063719,1748982642196,-440.0,0.00018904,2]
[364063721,1748982642207,-915.60167839,0.00019107,2]
[364063724,1748982642219,-440.0,0.00019178,2]
[364063725,1748982642228,-440.0,0.00019178,2]
[364063728,1748982642238,-440.0,0.00019178,2]
[364063730,1748982642247,-440.0,0.00019178,2]
[364063732,1748982642257,-489.37,0.00019178,2]
[364063734,1748982642267,-550.49958148,0.00019178,2]
[364063736,1748982642276,-440.0,0.00019178,2]
[364063738,1748982642286,-151.0,0.00019178,2]
[364063740,1748982642296,-186.75407199,0.00019233,2]
[364063742,1748982642306,-915.60167839,0.00019348,2]
[364063744,1748982642315,-440.0,0.00019452,2]
[364063746,1748982642325,-440.0,0.00019452,2]
[364063748,1748982642334,-440.0,0.00019452,2]
[364063750,1748982642344,-440.0,0.00019452,2]
[364063752,1748982642353,-489.37,0.00019452,2]
[364063754,1748982642362,-440.0,0.00019452,2]
[364063756,1748982642372,-1120.92209688,0.0001949,2]
[364063758,1748982642381,-1001.95813943,0.000195,2]
[364063760,1748982642392,-30810.65654118,0.000195,2]
[364063762,1748982642402,-915.60167839,0.0001959,2]
[364063764,1748982642411,-587.0,0.00019631,2]
[364063766,1748982642421,-440.0,0.00019726,2]
[364063768,1748982642432,-440.0,0.00019726,2]
[364063770,1748982642443,-440.0,0.00019726,2]
[364063772,1748982642453,-285.8,0.00019726,2]
[364063774,1748982642462,-489.37,0.00019726,2]
[364063776,1748982642471,-440.0,0.00019726,2]
[364063778,1748982642481,-180.842,0.00019801,2]
[364063780,1748982642490,-915.60167839,0.00019831,2]
[364063782,1748982642499,-313.68138358,0.0002,2]
[364063784,1748982642510,-242.99262108,0.0002,3]
[364063786,1748982642521,-279.3,0.0002,2]
[364063788,1748982642531,-440.0,0.0002,2]
[364063790,1748982642541,-440.0,0.0002,2]
[364063792,1748982642550,-1692.05104298,0.0002,2]
[364063794,1748982642559,-489.37,0.0002,2]
[364063796,1748982642569,-440.0,0.0002,2]
[364063798,1748982642578,-915.60167839,0.00020072,2]
[364063800,1748982642587,-315.694327,0.00020187,2]
[364063804,1748982642598,-440.0,0.00020273,2]
[364063807,1748982642608,-440.0,0.00020273,2]
[364063809,1748982642617,-489.37,0.00020273,2]
[364063811,1748982642627,-440.0,0.00020273,2]
[364063813,1748982642636,-915.60167839,0.00020314,3]
[364063815,1748982642646,-440.0,0.00020547,2]
[364063817,1748982642656,-441.84,0.00020547,2]
[364063819,1748982642665,-489.37,0.00020547,2]
[364063821,1748982642675,-440.0,0.00020547,2]
[364063823,1748982642685,-915.60167839,0.00020555,3]
[364063825,1748982642695,-1120.92209685,0.00020562,2]
[364063827,1748982642704,-915.60167839,0.00020797,4]
[364063829,1748982642714,-443.46,0.00020821,2]
[364063831,1748982642724,-489.37,0.00020821,2]
[364063833,1748982642733,-440.0,0.00020821,2]
[364063835,1748982642742,-8379.9423011,0.00021,2]
[364063837,1748982642751,-51977.00370006,0.00021,7]
[364063839,1748982642760,-915.60167839,0.00021038,4]
[364063841,1748982642769,-489.37,0.00021095,2]
[364063843,1748982642779,-440.0,0.00021095,2]
[364063845,1748982642789,-1172.3,0.000211,2]
[364063847,1748982642799,-915.60167839,0.00021279,5]
[364063849,1748982642810,-489.37,0.00021369,2]
[364063851,1748982642821,-440.0,0.00021369,2]
[364063853,1748982642833,-151.0,0.000214,3]
[364063855,1748982642845,-823.0,0.00021454,2]
[364063857,1748982642858,-915.60167839,0.00021521,5]
[364063860,1748982642868,-1120.92209685,0.00021634,2]
[364063862,1748982642877,-489.37,0.00021643,2]
[364063864,1748982642887,-440.0,0.00021643,2]
[364063866,1748982642896,-5902.93689244,0.000217,2]
[364063867,1748982642905,-962.0,0.00021742,2]
[364063869,1748982642915,-709.0,0.00021742,2]
[364063871,1748982642925,-2225.0,0.00021742,2]
[364063874,1748982642935,-915.60167839,0.00021762,5]
[364063876,1748982642944,-29030.07242,0.00021902,2]
[364063877,1748982642953,-8112.92177804,0.00021903,2]
[364063879,1748982642963,-489.37,0.00021917,2]
[364063881,1748982642976,-334.91183566,0.00021917,2]
[364063883,1748982642986,-150.0,0.00021918,2]
[364063886,1748982642995,-224.0,0.00022,2]
[364063887,1748982643004,-171.0,0.00022,2]
[364063889,1748982643013,-20583.56698152,0.00022,2]
[364063892,1748982643023,-165.37665368,0.00022,10]
[364063893,1748982643032,-915.60167839,0.00022003,6]
[364063895,1748982643041,-151.0,0.000221,10]
[364063897,1748982643050,-5000.0,0.00022133,2]
[364063899,1748982643060,-489.37,0.00022191,2]
[364063901,1748982643069,-915.60167839,0.00022245,6]
[364063903,1748982643078,-489.37,0.00022465,2]
[364063905,1748982643088,-915.60167839,0.00022486,7]
[364063907,1748982643097,-2095.6,0.000225,60]
[364063909,1748982643107,-153.0,0.00022521,2]
[364063911,1748982643116,-207.4,0.00022659,2]
[364063913,1748982643126,-500.0,0.00022659,2]
[364063915,1748982643135,-500.0,0.00022659,2]
[364063917,1748982643144,-500.0,0.00022659,2]
[364063919,1748982643154,-500.0,0.00022659,2]
[364063921,1748982643164,-500.0,0.00022659,2]
[364063923,1748982643174,-446.14358159,0.00022659,2]
[364063925,1748982643183,-500.0,0.00022659,2]
[364063927,1748982643193,-500.0,0.00022659,2]
[364063929,1748982643204,-500.0,0.00022659,2]
[364063931,1748982643213,-500.0,0.00022659,2]
[364063933,1748982643224,-500.0,0.00022659,2]
[364063935,1748982643234,-500.0,0.00022659,2]
[364063937,1748982643244,-500.0,0.00022659,2]
[364063938,1748982643254,-500.0,0.00022659,2]
[364063939,1748982643264,-158.122764,0.00022659,7]
[364063940,1748982643274,-158.122764,0.00022659,7]
[364063941,1748982643283,-3151.49,0.000227,7]
[364063942,1748982643293,-1120.92209685,0.00022706,2]
[364063943,1748982643302,-5179.84538315,0.00022712,7]
[364063944,1748982643311,-915.60167839,0.00022728,7]
[364063945,1748982643321,-489.4,0.00022739,2]
[364063946,1748982643329,-151.0,0.000228,7]
[364063947,1748982643338,-510.45975574,0.0002285,5]
[364063948,1748982643347,-6035.69810402,0.00022914,2]
[364063949,1748982643358,-200.0,0.00022947,7]
[364063950,1748982643367,-204.42612242,0.00022947,7]
[364063951,1748982643377,-915.60167839,0.00022969,8]
[364063953,1748982643386,-159.79694846,0.00022986,2]
[364063955,1748982643395,-7360.60695664,0.00022988,2]
[364063957,1748982643405,-5000.0,0.00022988,2]
[364063959,1748982643415,-5000.0,0.00022988,2]
[364063961,1748982643424,-5000.0,0.00022988,2]
[364063963,1748982643434,-500.0,0.00022999,2]
[364063965,1748982643447,-500.0,0.00022999,2]
[364063967,1748982643456,-500.0,0.00022999,2]
[364063969,1748982643467,-500.0,0.00022999,2]
[364063971,1748982643477,-500.0,0.00022999,2]
[364063973,1748982643489,-392.60563126,0.00022999,2]
[364063975,1748982643499,-500.0,0.00022999,2]
[364063977,1748982643509,-249.42107124,0.00022999,2]
[364063979,1748982643521,-649.40665939,0.00022999,2]
[364063981,1748982643531,-500.0,0.00022999,2]
[364063983,1748982643543,-610.68761917,0.00022999,2]
[364063985,1748982643553,-500.0,0.00022999,2]
[364063987,1748982643564,-409.02410236,0.00022999,2]
[364063989,1748982643574,-206.18620081,0.00022999,2]
[364063991,1748982643584,-500.0,0.00022999,2]
[364063993,1748982643594,-500.0,0.00022999,2]
[364063996,1748982643604,-211.87660772,0.00022999,2]
[364063997,1748982643613,-500.0,0.00022999,2]
[364063999,1748982643623,-500.0,0.00022999,2]
[364064001,1748982643632,-500.0,0.00022999,2]
[364064003,1748982643641,-500.0,0.00022999,2]
[364064005,1748982643651,-500.0,0.00022999,2]
[364064007,1748982643660,-500.0,0.00022999,2]
[364064009,1748982643670,-500.0,0.00022999,2]
[364064011,1748982643679,-500.0,0.00022999,2]
[364064013,1748982643689,-500.0,0.00022999,2]
[364064015,1748982643698,-500.0,0.00022999,2]
[364064017,1748982643707,-178303.44,0.00023,7]
[364064019,1748982643719,-31787.73262593,0.00023,2]
[364064021,1748982643728,-1103.05249401,0.00023,20]
[364064023,1748982643736,-65168.86739547,0.00023,21]
[364064025,1748982643745,-1326.6462031,0.00023,2]
[364064027,1748982643754,-70596.92,0.00023,7]
[364064029,1748982643762,-224.0,0.00023014,7]
[364064031,1748982643771,-1485.05,0.000231,2]
[364064033,1748982643781,-881.71162,0.00023156,2]
[364064035,1748982643790,-756.1293646,0.00023178,2]
[364064037,1748982643800,-364.5107659,0.00023205,2]
[364064039,1748982643810,-364.5107659,0.00023205,2]
[364064041,1748982643819,-364.5107659,0.00023205,2]
[364064043,1748982643829,-364.5107659,0.00023205,2]
[364064045,1748982643839,-364.5107659,0.00023205,2]
[364064047,1748982643849,-364.5107659,0.00023205,2]
[364064049,1748982643858,-364.5107659,0.00023205,2]
[364064051,1748982643868,-303.1819979,0.00023205,2]
[364064053,1748982643878,-915.60167839,0.0002321,8]
[364064055,1748982643888,-159.79694846,0.00023288,2]
[364064057,1748982643898,-1892.0337929,0.000233,15]
[364064059,1748982643908,-275.5,0.000233,8]
[364064061,1748982643918,-196.7887128,0.00023315,2]
[364064063,1748982643928,-209.8783578,0.00023342,2]
[364064065,1748982643938,-154.2001919,0.00023342,2]
[364064067,1748982643949,-176.5641048,0.00023342,2]
[364064069,1748982643958,-158.5442955,0.00023342,2]
[364064071,1748982643969,-153.0,0.00023342,2]
[364064073,1748982643979,-572.6068135,0.00023342,2]
[364064075,1748982643988,-158.5442955,0.00023342,2]
[364064077,1748982643997,-176.5641048,0.00023342,2]
[364064079,1748982644007,-572.6068135,0.00023342,2]
[364064081,1748982644017,-176.5641048,0.00023342,2]
[364064083,1748982644026,-572.6068135,0.00023342,2]
[364064085,1748982644036,-153.0,0.00023342,2]
[364064087,1748982644046,-153.0,0.00023342,2]
[364064089,1748982644056,-158.5442955,0.00023342,2]
[364064091,1748982644066,-176.5641048,0.00023342,2]
[364064093,1748982644076,-158.5442955,0.00023342,2]
[364064095,1748982644086,-572.6068135,0.00023342,2]
[364064097,1748982644096,-153.0,0.00023342,2]
[364064099,1748982644106,-176.5641048,0.00023342,2]
[364064101,1748982644116,-158.5442955,0.00023342,2]
[364064103,1748982644125,-572.6068135,0.00023342,2]
[364064105,1748982644135,-153.0,0.00023342,2]
[364064107,1748982644144,-572.6068135,0.00023342,2]
[364064109,1748982644154,-158.5442955,0.00023342,2]
[364064111,1748982644163,-176.5641048,0.00023342,2]
[364064113,1748982644172,-158.5442955,0.00023342,2]
[364064115,1748982644181,-153.0,0.00023342,2]
[364064117,1748982644191,-176.5641048,0.00023342,2]
[364064119,1748982644200,-153.0,0.00023342,2]
[364064121,1748982644209,-572.6068135,0.00023342,2]
[364064123,1748982644220,-176.5641048,0.00023342,2]
[364064125,1748982644230,-572.6068135,0.00023342,2]
[364064127,1748982644239,-158.5442955,0.00023342,2]
[364064129,1748982644250,-158.5442955,0.00023342,2]
[364064131,1748982644259,-153.0,0.00023342,2]
[364064133,1748982644270,-572.6068135,0.00023342,2]
[364064135,1748982644279,-153.0,0.00023342,2]
[364064137,1748982644289,-356.0,0.00023446,2]
[364064139,1748982644299,-915.60167839,0.00023452,9]
[364064141,1748982644308,-6035.69810401,0.00023483,2]
[364064143,1748982644318,-151.0,0.000235,6]
[364064145,1748982644327,-1172.3,0.000235,7]
[364064147,1748982644336,-3818.63285145,0.000235,2]
[364064149,1748982644346,-47440.32521249,0.000235,2]
[364064151,1748982644355,-159.79694846,0.00023589,2]
[364064153,1748982644366,-158.122764,0.000236,7]
[364064155,1748982644375,-158.122764,0.000236,7]
[364064157,1748982644385,-427.53,0.00023693,8]
[364064159,1748982644395,-915.60167839,0.00023693,9]
[364064161,1748982644404,-1120.92209685,0.00023778,2]
[364064163,1748982644415,-23783.30121337,0.000238,2]